bitfinex/quotes_BTCUSD_20241028
["timestamp","ask_amount","ask_price","bid_price","bid_amount"]
[1730114986348,0.61980766,68783.0,68782.0,0.091646]
[1730114986631,0.50737232,68783.0,68782.0,0.091646]
[1730114986860,0.4419314,68783.0,68782.0,0.091646]
[1730114987529,0.57736674,68783.0,68782.0,0.091646]
[1730114987758,0.6646246,68783.0,68782.0,0.091646]
[1730114987984,0.55458634,68783.0,68782.0,0.091646]
[1730114990050,0.55358634,68783.0,68782.0,0.091646]
[1730114990270,0.55958634,68783.0,68782.0,0.092646]
[1730114990483,0.55958634,68783.0,68782.0,0.091646]
[1730114990484,0.55358634,68783.0,68782.0,0.091646]
[1730114990963,0.55858634,68783.0,68782.0,0.091646]
[1730114991447,0.55958634,68783.0,68782.0,0.092646]
[1730114991677,0.55958634,68783.0,68782.0,0.093646]
[1730114991678,0.56358634,68783.0,68782.0,0.093646]
[1730114992119,0.58636763,68783.0,68782.0,0.093646]
[1730114993445,0.47393229,68783.0,68782.0,0.093646]
[1730115001518,0.58303739,68783.0,68782.0,0.093646]
[1730115003525,0.69547881,68783.0,68782.0,0.093646]
[1730115004731,0.58304347,68783.0,68782.0,0.093646]
[1730115005541,0.47593229,68783.0,68782.0,0.093646]
[1730115006174,0.47393229,68783.0,68782.0,0.093646]
[1730115009903,0.54663229,68783.0,68782.0,0.093646]
[1730115017556,0.65578485,68783.0,68782.0,0.093646]
[1730115017793,0.54863229,68783.0,68782.0,0.093646]
[1730115018031,0.54663229,68783.0,68782.0,0.093646]
[1730115018478,0.58882313,68783.0,68782.0,0.093646]
[1730115020086,0.59082313,68783.0,68782.0,0.093646]
[1730115021153,0.58882313,68783.0,68782.0,0.093646]
[1730115027812,0.58870313,68783.0,68782.0,0.093646]
[1730115028036,0.56592184,68783.0,68782.0,0.093646]
[1730115031336,0.58870336,68783.0,68782.0,0.093646]
[1730115032364,0.56592184,68783.0,68782.0,0.093646]
[1730115032828,0.68835718,68783.0,68782.0,0.093646]
[1730115033930,0.81941306,68783.0,68782.0,0.093646]
[1730115034343,0.68835718,68783.0,68782.0,0.093646]
[1730115034742,0.81939444,68783.0,68782.0,0.093646]
[1730115035725,0.842177,68783.0,68782.0,0.093646]
[1730115035965,0.72974166,68783.0,68782.0,0.093646]
[1730115036383,0.57592184,68783.0,68782.0,0.093646]
[1730115039297,0.5987044,68783.0,68782.0,0.093646]
[1730115039781,0.71113974,68783.0,68782.0,0.093646]
[1730115042425,0.70713974,68783.0,68782.0,0.092646]
[1730115042647,0.70113974,68783.0,68782.0,0.091646]
[1730115042868,0.70513974,68783.0,68782.0,0.092646]
[1730115043098,0.71113974,68783.0,68782.0,0.093646]
[1730115043307,0.70713974,68783.0,68782.0,0.091646]
[1730115044208,0.71313974,68783.0,68782.0,0.092646]
[1730115044653,0.71713974,68783.0,68782.0,0.093646]
[1730115045996,0.69435718,68783.0,68782.0,0.093646]
[1730115049162,0.71713939,68783.0,68782.0,0.093646]
[1730115049821,0.71717939,68783.0,68782.0,0.093646]
[1730115056958,0.69439718,68783.0,68782.0,0.093646]
[1730115059769,0.57196184,68783.0,68782.0,0.184846]
[1730115060179,0.59474382,68783.0,68782.0,0.184846]
[1730115060389,0.59268195,68783.0,68782.0,0.184846]
[1730115060992,0.59486417,68783.0,68782.0,0.184846]
[1730115066013,0.59486417,68783.0,68782.0,0.093646]
[1730115067099,0.57208219,68783.0,68782.0,0.093646]
[1730115067337,0.58208219,68783.0,68782.0,0.093646]
[1730115068049,0.84502134,68783.0,68782.0,0.093646]
[1730115068283,1.02292134,68783.0,68782.0,0.093646]
[1730115068500,1.02292134,68783.0,68782.0,0.003646]
[1730115068722,4.74035934,68783.0,68782.0,0.003646]
[1730115069181,4.31695934,68783.0,68782.0,0.003646]
[1730115069396,3.61357168,68783.0,68782.0,0.003646]
[1730115069820,0.67492835,68772.0,68771.0,0.00198]
[1730115070044,0.82543216,68772.0,68771.0,0.12198]
[1730115070276,0.84143012,68772.0,68771.0,0.12198]
[1730115070483,0.95055408,68772.0,68771.0,0.12198]
[1730115070922,0.84143012,68772.0,68771.0,0.12198]
[1730115071131,0.84443012,68772.0,68771.0,0.12198]
[1730115071562,0.95354448,68772.0,68771.0,0.12198]
[1730115072192,0.84110914,68772.0,68771.0,0.12198]
[1730115072620,0.73199478,68772.0,68771.0,0.12198]
[1730115073068,0.73499478,68772.0,68771.0,0.12198]
[1730115073308,0.75478021,68772.0,68771.0,0.12198]
[1730115073493,0.75878021,68772.0,68771.0,0.12198]
[1730115073938,0.75578021,68772.0,68771.0,0.12198]
[1730115074143,0.75178021,68772.0,68771.0,0.12198]
[1730115074361,0.76178021,68772.0,68771.0,0.12298]
[1730115074585,0.84903847,68772.0,68771.0,0.12298]
[1730115074998,0.84303847,68772.0,68771.0,0.12198]
[1730115075275,0.84903847,68772.0,68771.0,0.12298]
[1730115075705,0.84503847,68772.0,68771.0,0.12298]
[1730115075888,0.85003847,68772.0,68771.0,0.12298]
[1730115076335,0.85003847,68772.0,68771.0,0.124626]
[1730115076768,0.82725304,68772.0,68771.0,0.124626]
[1730115076976,0.82125304,68772.0,68771.0,0.123626]
[1730115077413,0.82825304,68772.0,68771.0,0.124626]
[1730115078054,0.84219284,68772.0,68771.0,0.124626]
[1730115078464,0.8421735,68772.0,68771.0,0.124626]
[1730115078884,0.95460884,68772.0,68771.0,0.124626]
[1730115079485,0.86736992,68772.0,68771.0,0.124626]
[1730115079928,0.89015535,68772.0,68771.0,0.124626]
[1730115080355,0.97739427,68772.0,68771.0,0.124626]
[1730115080775,1.04065916,68772.0,68771.0,0.124626]
[1730115081199,0.89015535,68772.0,68771.0,0.124626]
[1730115081613,0.93376714,68772.0,68771.0,0.124626]
[1730115083121,0.8213318,68772.0,68771.0,0.124626]
[1730115083322,0.8213318,68772.0,68771.0,0.217926]
[1730115085314,0.774392,68772.0,68771.0,0.217926]
[1730115085540,0.3252764,68772.0,68771.0,0.293626]
[1730115085988,0.3302764,68772.0,68771.0,0.293626]
[1730115086210,0.30749097,68772.0,68771.0,0.293626]
[1730115087879,0.30049097,68772.0,68771.0,0.292626]
[1730115088344,0.29549097,68772.0,68771.0,0.292626]
[1730115088770,0.29749097,68772.0,68771.0,0.292626]
[1730115089417,0.29849097,68772.0,68771.0,0.292626]
[1730115089623,0.29649097,68772.0,68771.0,0.292626]
[1730115090056,0.29949097,68772.0,68771.0,0.292626]
[1730115102749,0.89577915,68772.0,68771.0,0.123626]
[1730115102977,0.90077915,68772.0,68771.0,0.123626]
[1730115103208,0.97118585,68772.0,68771.0,0.11221552]
[1730115103416,0.99298809,68772.0,68771.0,0.11221552]
[1730115103668,0.90577915,68772.0,68771.0,0.11221552]
[1730115104109,0.90777915,68772.0,68771.0,0.11221552]
[1730115104328,0.90277915,68772.0,68771.0,0.11221552]
[1730115104546,0.92963273,68772.0,68771.0,0.11221552]
[1730115105224,0.92863273,68772.0,68771.0,0.11221552]
[1730115105423,0.93863273,68772.0,68771.0,0.09350477]
[1730115105624,0.85143012,68772.0,68771.0,0.09350477]
[1730115105829,0.86143012,68772.0,68771.0,0.09450477]
[1730115106239,0.85143012,68772.0,68771.0,0.09350477]
[1730115106443,0.87421573,68772.0,68771.0,0.09350477]
[1730115106654,0.88521573,68772.0,68771.0,0.09450477]
[1730115107077,1.02539691,68772.0,68771.0,0.09450477]
[1730115108457,1.03880721,68772.0,68771.0,0.09450477]
[1730115110891,1.0160216,68772.0,68771.0,0.09450477]
[1730115111112,1.3221655,68772.0,68771.0,0.09450477]
[1730115111347,1.3221655,68772.0,68770.0,0.00102191]
[1730115111348,0.46351781,68771.0,68770.0,9.1e-07]
[1730115111565,4.4497074,68771.0,68770.0,9.1e-07]
[1730115111793,0.81260984,68771.0,68770.0,9.1e-07]
[1730115112017,0.81060984,68771.0,68770.0,9.1e-07]
[1730115112224,0.81060984,68771.0,68761.0,0.2186828]
[1730115112225,0.76650749,68762.0,68761.0,0.2186828]
[1730115112439,1.16816431,68762.0,68761.0,0.2186828]
[1730115112649,1.06168812,68762.0,68761.0,0.2186828]
[1730115112873,0.51865381,68754.0,68743.0,0.0921]
[1730115113130,0.81055007,68754.0,68753.0,0.2486828]
[1730115113406,0.68811473,68754.0,68753.0,0.3586828]
[1730115113624,0.71090595,68754.0,68753.0,0.14]
[1730115115180,0.72490595,68754.0,68753.0,0.14]
[1730115115604,0.73390595,68754.0,68753.0,0.14]
[1730115115818,0.54640214,68754.0,68753.0,0.14]
[1730115116006,0.21258526,68754.0,68753.0,0.14]
[1730115116480,0.19858526,68754.0,68753.0,0.14]
[1730115116698,0.18458526,68754.0,68753.0,0.14]
[1730115116927,0.16179404,68754.0,68753.0,0.14]
[1730115117167,0.16579404,68754.0,68753.0,0.14]
[1730115117808,0.17579404,68754.0,68753.0,0.14]
[1730115118052,0.16579404,68754.0,68753.0,0.14]
[1730115118486,0.16879404,68754.0,68753.0,0.14]
[1730115122623,0.16883404,68754.0,68753.0,0.14]
[1730115122800,0.19162339,68754.0,68753.0,0.14]
[1730115124138,0.19162339,68754.0,68753.0,0.141646]
[1730115125677,0.03796958,68754.0,68753.0,0.141646]
[1730115125890,0.03796958,68754.0,68753.0,0.43118134]
[1730115125891,0.04117739,68754.0,68753.0,0.43118134]
[1730115126364,0.18662339,68754.0,68753.0,0.43118134]
[1730115126588,0.16383404,68754.0,68753.0,0.318746]
[1730115126813,0.15983404,68754.0,68753.0,0.318746]
[1730115128095,0.01438804,68754.0,68753.0,0.319746]
[1730115128298,0.01138804,68754.0,68753.0,0.319746]
[1730115128499,0.15683404,68754.0,68753.0,0.318746]
[1730115128994,0.15683404,68754.0,68753.0,0.319746]
[1730115129408,0.01138804,68754.0,68753.0,0.319746]
[1730115129909,0.00818023,68754.0,68753.0,0.43218134]
[1730115130139,0.00222312,68754.0,68753.0,0.58229399]
[1730115131017,0.00222312,68754.0,68753.0,0.43684599]
[1730115131281,0.00320781,68757.0,68753.0,0.32441065]
[1730115131498,0.00595541,68754.0,68753.0,0.32441065]
[1730115131704,0.00320781,68757.0,68753.0,0.32441284]
[1730115131914,0.00595541,68754.0,68753.0,0.465194]
[1730115132134,0.00595541,68754.0,68753.0,0.46886081]
[1730115132342,0.14864781,68757.0,68753.0,0.33088319]
[1730115132551,0.14864781,68757.0,68753.0,0.319746]
[1730115132760,0.14864781,68757.0,68754.0,0.00466815]
[1730115132964,0.00595592,68756.0,68755.0,0.00466815]
[1730115133186,0.00595592,68756.0,68755.0,0.12466815]
[1730115134501,0.00320781,68757.0,68755.0,0.12466815]
[1730115134712,0.00320781,68757.0,68756.0,0.10206815]
[1730115134947,0.00320781,68757.0,68756.0,0.22206797]
[1730115136047,0.00320781,68757.0,68756.0,0.22306797]
[1730115136293,0.00320781,68757.0,68756.0,0.22606797]
[1730115136538,0.25364681,68757.0,68756.0,0.12866797]
[1730115136755,0.25364681,68757.0,68756.0,0.124]
[1730115137408,0.25864681,68757.0,68756.0,0.123]
[1730115137629,0.25364681,68757.0,68756.0,0.123]
[1730115137835,0.25364681,68757.0,68756.0,0.124]
[1730115138242,0.25364681,68757.0,68756.0,0.123]
[1730115138448,0.25186904,68757.0,68756.0,0.12]
[1730115138656,0.25786904,68757.0,68756.0,0.12]
[1730115138895,0.25786904,68757.0,68756.0,0.123]
[1730115139097,0.26382578,68757.0,68756.0,0.12]
[1730115139423,0.26782578,68757.0,68756.0,0.12]
[1730115140271,0.16782578,68757.0,68756.0,0.12]
[1730115141042,0.16782578,68757.0,68756.0,0.2977]
[1730115141623,0.16282578,68757.0,68756.0,0.2977]
[1730115142259,0.16282578,68757.0,68756.0,0.30236673]
[1730115142836,0.01738678,68757.0,68756.0,0.30236673]
[1730115143042,0.16282578,68757.0,68756.0,0.30236673]
[1730115145768,0.16282578,68757.0,68756.0,0.30237003]
[1730115146187,0.16282578,68757.0,68756.0,0.2977]
[1730115146427,0.16282578,68757.0,68756.0,0.30237001]
[1730115147724,0.01738678,68757.0,68756.0,0.30237001]
[1730115147951,0.15682578,68757.0,68756.0,0.30237001]
[1730115148185,0.15982578,68757.0,68756.0,0.30237001]
[1730115148411,0.15582578,68757.0,68756.0,0.30237001]
[1730115148630,0.15664878,68757.0,68756.0,0.30237001]
[1730115148847,0.15764878,68757.0,68756.0,0.30237001]
[1730115149697,0.15764878,68757.0,68756.0,0.30237199]
[1730115149908,0.13083812,68757.0,68756.0,0.30237199]
[1730115151226,0.01078814,68757.0,68756.0,0.30237199]
[1730115151681,0.15622714,68757.0,68756.0,0.30237199]
[1730115153253,0.01078814,68757.0,68756.0,0.30237199]
[1730115153469,0.15622714,68757.0,68756.0,0.30237199]
[1730115153698,0.15622714,68757.0,68756.0,0.30236983]
[1730115153897,0.01078814,68757.0,68756.0,0.30236983]
[1730115154109,0.15622714,68757.0,68756.0,0.30236983]
[1730115154320,0.01078814,68757.0,68756.0,0.30236983]
[1730115154783,0.01078814,68757.0,68756.0,0.56771861]
[1730115155255,0.004823,68757.0,68756.0,0.71822242]
[1730115155949,0.003823,68757.0,68756.0,0.71822242]
[1730115156388,0.004823,68757.0,68756.0,0.72122242]
[1730115156598,0.004823,68757.0,68756.0,0.71822242]
[1730115156837,0.001823,68757.0,68756.0,0.71822242]
[1730115157081,0.003823,68757.0,68756.0,0.72422242]
[1730115157531,0.002823,68757.0,68756.0,0.72120635]
[1730115157982,0.003823,68757.0,68756.0,0.72420635]
[1730115161207,0.003823,68757.0,68756.0,0.61177101]
[1730115161413,0.003823,68757.0,68756.0,0.61341701]
[1730115164966,0.000823,68765.0,68762.0,0.145427]
[1730115165182,0.000823,68765.0,68764.0,0.145424]
[1730115165388,0.000823,68765.0,68764.0,0.1346598]
[1730115165817,0.146245,68765.0,68764.0,0.1346598]
[1730115166029,0.000823,68765.0,68764.0,0.1346598]
[1730115166236,0.147245,68765.0,68764.0,0.1346598]
[1730115166532,0.151245,68765.0,68764.0,0.13]
[1730115167035,0.151245,68765.0,68764.0,0.133]
[1730115167036,0.152245,68765.0,68764.0,0.133]
[1730115167260,0.153245,68765.0,68764.0,0.133]
[1730115167724,0.152245,68765.0,68764.0,0.133]
[1730115167939,0.155245,68765.0,68764.0,0.133]
[1730115168797,0.154245,68765.0,68764.0,0.13]
[1730115169011,0.15998108,68765.0,68764.0,0.13]
[1730115169225,0.16098108,68765.0,68764.0,0.13]
[1730115169445,0.00955908,68765.0,68764.0,0.13]
[1730115169661,0.00655908,68765.0,68764.0,0.28008538]
[1730115169889,0.00655908,68765.0,68764.0,0.28108538]
[1730115170109,0.00755908,68765.0,68764.0,0.28008538]
[1730115170529,0.00755908,68765.0,68764.0,0.28108538]
[1730115170781,0.00655908,68765.0,68764.0,0.28008538]
[1730115170964,0.00655908,68765.0,68764.0,0.28208538]
[1730115172268,0.00655908,68765.0,68764.0,0.28608538]
[1730115172914,0.00655908,68765.0,68764.0,0.281424]
[1730115173146,0.00655908,68765.0,68764.0,0.28608648]
[1730115174934,0.00655908,68765.0,68764.0,0.2935493]
[1730115175151,0.00655908,68765.0,68764.0,0.28608648]
[1730115175374,0.00655908,68765.0,68764.0,0.29354867]
[1730115176230,0.000823,68765.0,68764.0,0.27301467]
[1730115176907,0.000823,68765.0,68764.0,0.2759462]
[1730115177115,0.000823,68765.0,68764.0,0.273038]
[1730115178872,0.000823,68765.0,68764.0,0.27594614]
[1730115179860,0.000823,68765.0,68764.0,0.273038]
[1730115180065,0.00657502,68765.0,68764.0,0.273038]
[1730115180266,0.000823,68765.0,68764.0,0.273038]
[1730115181147,0.000823,68765.0,68764.0,0.26089]
[1730115181342,0.000823,68765.0,68764.0,0.12761695]
[1730115181544,0.00657502,68765.0,68764.0,0.12761818]
[1730115182621,0.00661502,68765.0,68764.0,0.12761818]
[1730115182993,0.15203702,68765.0,68764.0,0.12761818]
[1730115183195,0.00661502,68765.0,68764.0,0.12761818]
[1730115183394,0.15203702,68765.0,68764.0,0.115466]
[1730115183747,0.00661502,68765.0,68764.0,0.12014078]
[1730115184179,0.15203702,68765.0,68764.0,0.12762086]
[1730115184408,0.00661502,68765.0,68764.0,0.12762263]
[1730115185514,0.000863,68765.0,68764.0,0.12762276]
[1730115185751,0.00661519,68765.0,68764.0,0.12014078]
[1730115185965,0.000863,68765.0,68764.0,0.12014078]
[1730115186175,0.00661519,68765.0,68764.0,0.12014078]
[1730115186419,0.000863,68765.0,68764.0,0.12762267]
[1730115186823,0.00661734,68765.0,68764.0,0.12762267]
[1730115187065,0.00661734,68765.0,68764.0,0.27304667]
[1730115187279,0.00661734,68765.0,68764.0,0.26089]
[1730115187512,0.00661734,68765.0,68764.0,0.27304533]
[1730115187962,0.00661734,68765.0,68764.0,0.27304533]
[1730115188566,0.00661734,68765.0,68764.0,0.12762133]
[1730115188808,0.00661734,68765.0,68764.0,0.27304533]
[1730115193408,0.000863,68765.0,68764.0,0.27304533]
[1730115193757,0.000863,68765.0,68764.0,0.26556465]
[1730115194366,0.000863,68765.0,68764.0,0.12014065]
[1730115194623,0.000863,68765.0,68764.0,0.27304547]
[1730115194980,0.00661734,68765.0,68764.0,0.27304547]
[1730115195150,0.00661734,68765.0,68764.0,0.115466]
[1730115195355,0.00661734,68765.0,68764.0,0.1276214]
[1730115195557,0.00661734,68765.0,68764.0,0.2730454]
[1730115195762,0.00661734,68765.0,68764.0,0.1276214]
[1730115195966,0.00661734,68765.0,68764.0,0.1292674]
[1730115196158,0.00661734,68765.0,68764.0,0.2746914]
[1730115196402,0.00661734,68765.0,68764.0,0.1292674]
[1730115196747,0.00661734,68765.0,68764.0,0.2746914]
[1730115196955,0.00661734,68765.0,68764.0,0.1292674]
[1730115198025,0.00661734,68765.0,68764.0,0.12178674]
[1730115198230,0.00661734,68765.0,68764.0,0.12926953]
[1730115200738,0.15203934,68765.0,68764.0,0.12926953]
[1730115200965,0.00661734,68765.0,68764.0,0.12926953]
[1730115203008,0.15203934,68765.0,68764.0,0.12926953]
[1730115203433,0.15203934,68765.0,68764.0,0.12178674]
[1730115205180,0.15203934,68765.0,68764.0,0.11778674]
[1730115205416,0.15203934,68765.0,68764.0,0.11878674]
[1730115205623,0.15703934,68765.0,68764.0,0.11978674]
[1730115206557,0.15703934,68765.0,68764.0,0.115112]
[1730115206763,0.15703934,68765.0,68764.0,0.114112]
[1730115207196,0.15803934,68765.0,68764.0,0.111112]
[1730115207415,0.15803934,68765.0,68764.0,0.112112]
[1730115220761,0.01261734,68765.0,68764.0,0.112112]
[1730115220957,0.15803934,68765.0,68764.0,0.11678633]
[1730115222031,0.15803934,68765.0,68764.0,0.112112]
[1730115222245,0.15803934,68765.0,68764.0,0.11678683]
[1730115223346,0.16237164,68765.0,68764.0,0.11678683]
[1730115225329,0.26097164,68765.0,68764.0,0.11678683]
[1730115225523,0.60531079,68765.0,68764.0,0.112112]
[1730115226333,0.70531079,68765.0,68764.0,0.112112]
[1730115226543,0.77077513,68765.0,68764.0,0.112112]
[1730115226780,0.79261044,68765.0,68764.0,0.112112]
[1730115227201,0.79261044,68765.0,68764.0,0.111112]
[1730115227429,0.79561044,68765.0,68764.0,0.111112]
[1730115227659,0.70831079,68765.0,68764.0,0.111112]
[1730115227882,0.70431079,68765.0,68764.0,0.111112]
[1730115228099,0.71431079,68765.0,68764.0,0.112112]
[1730115228483,0.71431079,68765.0,68764.0,0.111112]
[1730115228484,0.70931079,68765.0,68764.0,0.111112]
[1730115228917,0.71631079,68765.0,68764.0,0.112112]
[1730115229151,0.72931079,68765.0,68764.0,0.112112]
[1730115229585,0.79475044,68765.0,68764.0,0.112112]
[1730115231175,0.80821955,68765.0,68764.0,0.112112]
[1730115231631,0.61687545,68765.0,68764.0,0.112112]
[1730115231860,0.28637164,68765.0,68764.0,0.112112]
[1730115232735,0.27337164,68765.0,68764.0,0.112112]
[1730115233627,0.26137164,68765.0,68764.0,0.111112]
[1730115233850,0.26737164,68765.0,68764.0,0.112112]
[1730115234074,0.27437164,68765.0,68764.0,0.113112]
[1730115234302,0.29715744,68765.0,68764.0,0.113112]
[1730115238260,0.27437164,68765.0,68764.0,0.113112]
[1730115242736,0.29715772,68765.0,68764.0,0.113112]
[1730115246848,0.19715772,68765.0,68764.0,0.113112]
[1730115254461,0.04673572,68765.0,68764.0,0.113112]
[1730115254789,0.02394964,68765.0,68764.0,0.44160116]
[1730115254993,0.146231,68772.0,68769.0,0.168]
[1730115255217,0.000823,68772.0,68771.0,0.25784534]
[1730115255477,0.000823,68772.0,68771.0,0.39252093]
[1730115256163,0.000823,68772.0,68771.0,0.48972093]
[1730115256389,0.000823,68772.0,68771.0,0.56802093]
[1730115256613,0.000823,68772.0,68771.0,0.58625867]
[1730115257228,0.001823,68772.0,68771.0,0.59125867]
[1730115257505,0.001823,68772.0,68771.0,0.74176248]
[1730115257713,0.001823,68772.0,68771.0,0.86152223]
[1730115257913,0.001823,68772.0,68771.0,0.90964918]
[1730115258094,0.001823,68772.0,68771.0,1.02208452]
[1730115258335,0.002823,68772.0,68771.0,0.91764918]
[1730115258574,0.001823,68772.0,68771.0,1.00897076]
[1730115258825,0.001823,68772.0,68771.0,1.01184416]
[1730115259106,0.002823,68772.0,68771.0,1.01184416]
[1730115259327,0.002823,68772.0,68771.0,0.99284416]
[1730115259328,0.000823,68772.0,68771.0,0.99284416]
[1730115259545,0.001823,68772.0,68771.0,1.00684416]
[1730115259748,0.001823,68772.0,68771.0,0.93696161]
[1730115259956,0.000823,68772.0,68771.0,0.92296161]
[1730115260158,0.000823,68772.0,68771.0,0.92096161]
[1730115260412,0.001823,68772.0,68771.0,0.93496161]
[1730115260615,0.001823,68772.0,68771.0,0.89152759]
[1730115260819,0.001823,68772.0,68771.0,0.89352759]
[1730115261028,0.001823,68772.0,68771.0,0.90752759]
[1730115261230,0.002863,68772.0,68771.0,0.90752759]
[1730115262027,0.002863,68772.0,68771.0,0.88452223]
[1730115262236,0.002863,68772.0,68771.0,0.89662326]
[1730115262432,0.002863,68772.0,68771.0,0.90746502]
[1730115263563,0.002863,68772.0,68771.0,0.78558248]
[1730115263994,0.002863,68772.0,68771.0,0.89801782]
[1730115264249,0.002863,68772.0,68771.0,0.78558248]
[1730115265613,0.002863,68772.0,68771.0,0.90001782]
[1730115266467,0.002863,68772.0,68771.0,0.9000129]
[1730115268441,0.002863,68772.0,68771.0,0.78757756]
[1730115268865,0.002863,68772.0,68771.0,0.9000129]
[1730115269744,0.002863,68772.0,68771.0,0.9582019]
[1730115269971,0.000823,68777.0,68776.0,0.012]
[1730115270202,0.000823,68777.0,68776.0,0.87336265]
[1730115271816,0.000823,68777.0,68776.0,0.88418812]
[1730115272078,0.000823,68789.0,68788.0,0.155374]
[1730115272337,0.000823,68789.0,68788.0,0.59291315]
[1730115272585,0.000823,68789.0,68788.0,0.71291315]
[1730115272814,0.000823,68789.0,68788.0,0.73579855]
[1730115273713,0.001823,68789.0,68788.0,0.74779855]
[1730115273955,0.001823,68789.0,68788.0,0.74315089]
[1730115274177,0.001823,68789.0,68788.0,0.74779581]
[1730115274692,0.001823,68789.0,68788.0,0.80598306]
[1730115277820,0.001863,68789.0,68788.0,0.78774532]
[1730115278059,0.001863,68789.0,68788.0,0.78774514]
[1730115278293,0.001863,68789.0,68788.0,0.78774585]
[1730115282205,0.001863,68789.0,68788.0,0.79517965]
[1730115282414,0.001863,68789.0,68788.0,0.80602159]
[1730115282632,0.001863,68789.0,68788.0,0.81183959]
[1730115285203,0.001863,68789.0,68788.0,0.80683959]
[1730115285629,0.001863,68789.0,68788.0,0.81383959]
[1730115286121,0.002863,68789.0,68788.0,0.82783959]
[1730115286344,0.002863,68789.0,68788.0,0.81704013]
[1730115286549,0.000824,68794.0,68790.0,0.145369]
[1730115286770,0.000824,68794.0,68790.0,0.42800015]
[1730115287212,0.000824,68794.0,68790.0,0.43886269]
[1730115287687,0.000824,68794.0,68790.0,0.45286269]
[1730115287901,0.000824,68794.0,68790.0,0.46486269]
[1730115294277,0.000824,68794.0,68790.0,0.4540104]
[1730115294495,0.000824,68794.0,68790.0,0.57685145]
[1730115298128,0.000824,68794.0,68790.0,0.5659797]
[1730115298346,0.000824,68794.0,68790.0,0.5768618]
[1730115301214,0.000824,68794.0,68790.0,0.57687632]
[1730115304057,0.000824,68794.0,68790.0,0.16903967]
[1730115304261,0.000824,68794.0,68790.0,0.31440867]
[1730115304480,0.000824,68794.0,68790.0,0.42637251]
[1730115304696,0.000824,68794.0,68790.0,0.42637464]
[1730115304901,0.00635922,68791.0,68790.0,0.42637464]
[1730115305123,0.000823,68791.0,68790.0,0.42637464]
[1730115305378,0.000823,68791.0,68790.0,0.41548569]
[1730115306426,0.000823,68791.0,68790.0,0.41548331]
[1730115306659,0.000823,68791.0,68790.0,0.4154832]
[1730115307719,0.000823,68791.0,68790.0,0.40333284]
[1730115307935,0.000823,68791.0,68790.0,0.41548033]
[1730115308316,0.00635957,68791.0,68790.0,0.41548033]
[1730115308554,0.000823,68791.0,68790.0,0.26263554]
[1730115308771,0.000823,68791.0,68790.0,0.39600454]
[1730115308997,0.000823,68791.0,68790.0,0.25063554]
[1730115309216,0.000823,68791.0,68790.0,0.38200454]
[1730115309438,0.000823,68791.0,68790.0,0.40200454]
[1730115309646,0.00635957,68791.0,68790.0,0.40200454]
[1730115309828,0.000823,68791.0,68790.0,0.40200454]
[1730115311115,0.000823,68791.0,68790.0,0.39200454]
[1730115311525,0.000823,68791.0,68790.0,0.39900454]
[1730115311803,0.00635957,68791.0,68790.0,0.39900454]
[1730115311987,0.000823,68791.0,68790.0,0.39900454]
[1730115313305,0.000823,68791.0,68790.0,0.39900312]
[1730115318545,0.000823,68791.0,68790.0,0.14167028]
[1730115318751,0.23189,68791.0,68790.0,0.137]
[1730115318954,0.23742783,68791.0,68790.0,0.137]
[1730115320033,0.23742783,68791.0,68790.0,0.13466915]
[1730115320285,0.09206083,68791.0,68790.0,0.12466915]
[1730115320489,0.09706083,68791.0,68790.0,0.12466915]
[1730115320725,0.02036083,68791.0,68790.0,0.12466915]
[1730115320926,0.02036083,68791.0,68790.0,0.27003815]
[1730115320927,0.009823,68791.0,68790.0,0.27003815]
[1730115321180,0.01513939,68791.0,68790.0,0.27003815]
[1730115321344,0.01813939,68791.0,68790.0,0.27003815]
[1730115321708,0.01813939,68791.0,68790.0,0.12466915]
[1730115321910,0.01113939,68791.0,68790.0,0.12466915]
[1730115322035,0.01113939,68791.0,68790.0,0.12966915]
[1730115322245,0.01113939,68791.0,68790.0,0.12466915]
[1730115322664,0.01113939,68791.0,68790.0,0.13066915]
[1730115322858,0.01113939,68791.0,68790.0,0.12466915]
[1730115323066,0.01613939,68791.0,68790.0,0.12]
[1730115323267,0.01613939,68791.0,68790.0,0.129]
[1730115323268,0.24210639,68791.0,68790.0,0.129]
[1730115323646,0.24210639,68791.0,68790.0,0.125]
[1730115324056,0.24210639,68791.0,68790.0,0.128]
[1730115324798,0.24210639,68791.0,68790.0,0.123]
[1730115325249,0.24210639,68791.0,68790.0,0.128]
[1730115325462,0.24210639,68791.0,68790.0,0.123]
[1730115325927,0.24210639,68791.0,68790.0,0.128]
[1730115326139,0.24210639,68791.0,68790.0,0.125]
[1730115326574,0.24210639,68791.0,68790.0,0.123]
[1730115327006,0.24210639,68791.0,68790.0,0.122]
[1730115331530,0.24550741,68791.0,68790.0,0.122]
[1730115331975,0.24050741,68791.0,68790.0,0.122]
[1730115332194,0.24550741,68791.0,68790.0,0.122]
[1730115332693,0.24550741,68791.0,68790.0,0.12]
[1730115332906,0.24550741,68791.0,68790.0,0.121]
[1730115334185,0.17090741,68791.0,68790.0,0.121]
[1730115336593,0.61791122,68791.0,68790.0,0.121]
[1730115336798,0.68328064,68791.0,68790.0,0.121]
[1730115337015,0.72686026,68791.0,68790.0,0.121]
[1730115337235,0.67005543,68791.0,68790.0,0.121]
[1730115337446,0.62791122,68791.0,68790.0,0.121]
[1730115337871,0.79237554,68791.0,68790.0,0.121]
[1730115338319,0.64187173,68791.0,68790.0,0.121]
[1730115338544,0.74976951,68791.0,68790.0,0.12]
[1730115338986,0.76076951,68791.0,68790.0,0.121]
[1730115339435,0.74976951,68791.0,68790.0,0.121646]
[1730115339660,0.64687173,68791.0,68790.0,0.122646]
[1730115339880,0.65287173,68791.0,68790.0,0.123646]
[1730115340345,0.64087173,68791.0,68790.0,0.121646]
[1730115340551,0.72795197,68791.0,68790.0,0.121646]
[1730115340960,0.75073176,68791.0,68790.0,0.121646]
[1730115341850,0.76273176,68791.0,68790.0,0.123646]
[1730115342265,0.75673176,68791.0,68790.0,0.122646]
[1730115342491,0.66965152,68791.0,68790.0,0.122646]
[1730115342723,0.67565152,68791.0,68790.0,0.122646]
[1730115343574,0.68165152,68791.0,68790.0,0.123646]
[1730115344744,0.74694335,68791.0,68790.0,0.123646]
[1730115344980,0.68165152,68791.0,68790.0,0.123646]
[1730115346523,0.7937186,68791.0,68790.0,0.123646]
[1730115347357,0.85900522,68791.0,68790.0,0.123646]